Workbook

Sheet 17
K2: Школа №_______________
K3: __________________________
C4: меню на 19 мая 2025
A5: № р-ры | B5: Наименование блюда | C5: Выход (гр) | D5: б | E5: ж | F5: у | G5: Ккал | H5: Цена (руб) | I5: № р-ры | J5: Наименование блюда | K5: Выход (гр) | L5: б | M5: ж | N5: у | O5: Ккал | P5: Цена (руб)
A6: Завтрак (7-11 лет) для учащихся первой смены | I6: Завтрак (12 лет и старше) родительская плата, бесплатное питание
A7: 10 | B7: Бутерброд горячий с сыром | C7: 60 | D7: 3.36 | E7: 7.35 | F7: 8.08 | G7: =(F7*4)+(E7*9)+(D7*4) -> 111.91 | H7: 44 | I7: 10 | J7: Бутерброд горячий с сыром | K7: 45 | L7: 3.36 | M7: 7.35 | N7: 8.08 | O7: =(N7*4)+(M7*9)+(L7*4) -> 111.91 | P7: 30
A8: 04/с.246 | B8: Каша молочная "Дружба" | C8: 200 | D8: 7.27 | E8: 7.57 | F8: 25.06 | G8: =(F8*4)+(E8*9)+(D8*4) -> 197.45 | H8: 19 | I8: 04/с.246 | J8: Каша молочная "Дружба" | K8: 200 | L8: 7.27 | M8: 7.57 | N8: 25.06 | O8: =(N8*4)+(M8*9)+(L8*4) -> 197.45 | P8: 19
A9: 324 | B9: Яйцо вареное | C9: 40 | D9: 5 | E9: 5 | F9: 0 | G9: =(F9*4)+(E9*9)+(D9*4) -> 65 | H9: 24 | I9: 324 | J9: Яйцо вареное | K9: 40 | L9: 5 | M9: 5 | N9: 0 | O9: =(N9*4)+(M9*9)+(L9*4) -> 65 | P9: 24
A10: 629 | B10: чай с лимоном и сахаром | C10: 200 | D10: 0.2 | E10: 0 | F10: 23 | G10: 88 | H10: 6 | I10: 642 | J10: Какао с молоком | K10: 200 | L10: 2.47 | M10: 2 | N10: 18 | O10: 99.88 | P10: 21
B11: хлеб пшеничный | C11: 31 | D11: 2.3 | E11: 0.2 | F11: 15 | G11: 71 | H11: 3 | J11: Хлеб пшеничный | K11: 31 | L11: 2.3 | M11: 0.2 | N11: 15 | O11: 71 | P11: 2
B12: хлеб ржаной | C12: 28 | D12: 1.6 | E12: 1 | F12: 9.60 | G12: 54 | H12: 3.44
B16: Итого | C16: =SUM(C7:C12) -> 559 | D16: =SUM(D7:D12) -> 20 | E16: =SUM(E7:E12) -> 21 | F16: =SUM(F7:F12) -> 81 | G16: =SUM(G7:G12) -> 587 | H16: =SUM(H7:H13) -> 99.44 | J16: Итого | K16: =SUM(K7:K15) -> 516 | L16: 20 | M16: 22 | N16: 66 | O16: 545 | P16: 96.00
A17: Обед (7-11 лет) для учащихся второй смены
A18: 405 | B18: салат из капусты и морской капусты | C18: 60 | D18: 1 | E18: 6 | F18: 7 | G18: =(F18*4)+(E18*9)+(D18*4) -> 86 | H18: 16
A19: 124 | B19: Щи | C19: 200 | D19: 1.7 | E19: 4.24 | F19: 10.4 | G19: =(F19*4)+(E19*9)+(D19*4) -> 86.48 | H19: 13
A20: 469 | B20: Фрикадельки мясные | C20: 115 | D20: 16 | E20: 16 | F20: 14 | G20: =(F20*4)+(E20*9)+(D20*4) -> 264 | H20: 47
A21: 528 | B21: с соусом красный основной | H21: 2
A22: 4с246 | B22: Каша перловая (рассыпчатая) | C22: 150 | D22: 2 | E22: 4.2 | F22: 20 | G22: =(F22*4)+(E22*9)+(D22*4) -> 125.8 | H22: 9
A23: 702 | B23: напиток из смородины (варенье) | C23: 200 | D23: 0 | E23: 0 | F23: 26 | G23: 98 | H23: 9
B24: Хлеб пшеничный | C24: 31 | D24: 2.3 | E24: 0.2 | F24: 15 | G24: 71 | H24: 3.44
B27: Итого | C27: =SUM(C18:C26) -> 756 | D27: =SUM(D18:D26) -> 23 | E27: =SUM(E18:E26) -> 31 | F27: =SUM(F18:F26) -> 92 | G27: =SUM(G18:G26) -> 731 | H27: =SUM(H18:H23)+H24 -> 99.44
B28: Зав. производством ООО "Юнрос"______________________________________
B29: _________________________________________________________________

Sheet 17 овз
K1: Школа №________
K3: _________________________
B4: меню на 19 мая 2025
A5: № р-ры | B5: Наименование блюда | C5: Выход (гр) | D5: б | E5: ж | F5: у | G5: Ккал | H5: Цена (руб) | I5: № р-ры | J5: Наименование блюда | K5: Выход (гр) | L5: б | M5: ж | N5: у | O5: Ккал | P5: Цена (руб)
A6: Завтрак (ОВЗ) 1-4 классы | I6: Завтрак (ОВЗ) 5-11 классы
A7: 10 | B7: Бутерброд горячий с сыром | C7: 45 | D7: 3.36 | E7: 7.35 | F7: 8.08 | G7: =(F7*4)+(E7*9)+(D7*4) -> 111.91 | H7: 30 | I7: 10 | J7: Бутерброд горячий с сыром | K7: 45 | L7: 3.36 | M7: 7.35 | N7: 8.08 | O7: =(N7*4)+(M7*9)+(L7*4) -> 111.91 | P7: 30
A8: 04/с.246 | B8: Каша молочная "Дружба" | C8: 205 | D8: 7.27 | E8: 7.57 | F8: 25.06 | G8: =(F8*4)+(E8*9)+(D8*4) -> 197.45 | H8: 19 | I8: 04/с.246 | J8: Каша молочная "Дружба" | K8: 205 | L8: 7.27 | M8: 7.57 | N8: 25.06 | O8: =(N8*4)+(M8*9)+(L8*4) -> 197.45 | P8: 19
A9: 324 | B9: Яйцо вареное | C9: 40 | D9: 5 | E9: 5 | F9: 0 | G9: =(F9*4)+(E9*9)+(D9*4) -> 65 | H9: 24 | I9: 324 | J9: Яйцо вареное | K9: 40 | L9: 5 | M9: 5 | N9: 0 | O9: =(N9*4)+(M9*9)+(L9*4) -> 65 | P9: 24
A10: 642 | B10: Какао с молоком | C10: 200 | D10: 2.47 | E10: 2 | F10: 18 | G10: 99.88 | H10: 21 | I10: 642 | J10: Какао с молоком | K10: 200 | L10: 2.47 | M10: 2 | N10: 18 | O10: 99.88 | P10: 21
B11: Хлеб ржаной | C11: 25 | D11: 1.6 | E11: 1 | F11: 9.6 | G11: 54 | H11: 3 | J11: Хлеб ржаной | K11: 25 | L11: 1.6 | M11: 1 | N11: 9.6 | O11: 54 | P11: 3
C12: =SUM(C7:C11) -> 515 | D12: =SUM(D7:D11) -> 20 | E12: =SUM(E7:E11) -> 23 | F12: =SUM(F7:F11) -> 61 | G12: =SUM(G7:G11) -> 528 | H12: =SUM(H7:H10)+H11 -> 97.00 | K12: =SUM(K7:K11) -> 515 | L12: =SUM(L7:L11) -> 20 | M12: =SUM(M7:M11) -> 23 | N12: =SUM(N7:N11) -> 61 | O12: =SUM(O7:O11) -> 528 | P12: =SUM(P7:P10)+P11 -> 97.00
A13: Обед (ОВЗ) | I13: Обед (ОВЗ)
A14: 405 | B14: Салат из свежей и морской капусты | C14: 100 | D14: 1.4 | E14: 8.4 | F14: 9.8 | G14: =(F14*4)+(E14*9)+(D14*4) -> 120.4 | H14: 27 | I14: 405 | J14: Салат из свежей и морской капусты | K14: 100 | L14: 1.4 | M14: 8.4 | N14: 9.8 | O14: =(N14*4)+(M14*9)+(L14*4) -> 120.4 | P14: 27
A15: 124 | B15: Щи со сметаной | C15: 260 | D15: 2.16 | E15: 5.31 | F15: 13 | G15: =(F15*4)+(E15*9)+(D15*4) -> 108.43 | H15: 21 | I15: 124 | J15: Щи со сметаной | K15: 260 | L15: 2.16 | M15: 5.31 | N15: 13 | O15: =(N15*4)+(M15*9)+(L15*4) -> 108.43 | P15: 21
A16: 411 | B16: с мясом отварным | C16: 25 | D16: 6.5 | E16: 4.2 | F16: 0.2 | G16: =(F16*4)+(E16*9)+(D16*4) -> 64.6 | H16: 21 | I16: 411 | J16: с мясом отварным | K16: 25 | L16: 6.5 | M16: 4.2 | N16: 0.2 | O16: =(N16*4)+(M16*9)+(L16*4) -> 64.6 | P16: 21
A17: 469 | B17: Фрикадельки мясные | C17: 125 | D17: 16 | E17: 16 | F17: 14 | G17: =(F17*4)+(E17*9)+(D17*4) -> 264 | H17: 47 | I17: 469 | J17: Фрикадельки мясные | K17: 125 | L17: 16 | M17: 16 | N17: 14 | O17: =(N17*4)+(M17*9)+(L17*4) -> 264 | P17: 47
A18: 528 | B18: с соусом красный основной | H18: 3 | I18: 528 | J18: с соусом красный основной | P18: 3
A19: 246 | B19: Каша перловая (рассыпчатая) | C19: 180 | D19: 2.4 | E19: 5.04 | F19: 24 | G19: =(F19*4)+(E19*9)+(D19*4) -> 150.96 | H19: 10 | I19: 246 | J19: Каша перловая (рассыпчатая) | K19: 180 | L19: 2.4 | M19: 5.04 | N19: 24 | O19: =(N19*4)+(M19*9)+(L19*4) -> 150.96 | P19: 10
A20: 702 | B20: Напиток из смородины /вар | C20: 200 | D20: 0 | E20: 0.5 | F20: 24.5 | G20: =(F20*4)+(E20*9)+(D20*4) -> 102.5 | H20: 9 | I20: 702 | J20: Напиток из смородины /вар | K20: 200 | L20: 0 | M20: 0.5 | N20: 24.5 | O20: =(N20*4)+(M20*9)+(L20*4) -> 102.5 | P20: 9
B21: Хлеб пшеничный | C21: 31 | D21: 2.3 | E21: 0.2 | F21: 15 | G21: =(F21*4)+(E21*9)+(D21*4) -> 71 | H21: 3 | J21: Хлеб пшеничный | K21: 31 | L21: 2.3 | M21: 0.2 | N21: 15 | O21: =(N21*4)+(M21*9)+(L21*4) -> 71 | P21: 3
B22: Хлеб ржаной | C22: 25 | D22: 1.6 | E22: 1 | F22: 9.6 | G22: 54 | H22: 4.03 | J22: Хлеб ржаной | K22: 25 | L22: 1.6 | M22: 1 | N22: 9.6 | O22: 54 | P22: 4.03
B23: Итого | C23: =C11+C21 -> 56 | D23: 4 | E23: 1 | F23: 25 | G23: 125 | H23: =H22+H13+H14+H15+H16+H17+H18+H19+H20+H21 -> 145.03 | J23: Итого | K23: =K11+K21 -> 56 | L23: 4 | M23: 1 | N23: 25 | O23: 125 | P23: =P22+P13+P14+P15+P16+P17+P18+P19+P20+P21 -> 145.03
B24: Итого | C24: 540 | D24: 21 | E24: 24 | F24: 70 | G24: 582 | H24: =H23+H12 -> 242.03 | J24: Итого | K24: 540 | L24: 21 | M24: 24 | N24: 70 | O24: 582 | P24: =P23+P12 -> 242.03
B25: Зав. производством ООО "Юнрос"_____________________________
B26: _____________________________________________________________
